bitfinex/quotes_SOLUSD_20241008
["timestamp","ask_amount","ask_price","bid_price","bid_amount"]
[1728399230289,0.7654,144.3,144.25,17.3302]
[1728399230473,6.9305,144.29,144.25,24.2624]
[1728399230787,23.563,144.3,144.22,17.3339]
[1728399230966,6.9322,144.26,144.22,24.2677]
[1728399231160,6.9324,144.25,144.22,17.3339]
[1728399231357,6.9329,144.24,144.2,6.9346]
[1728399231589,6.9325,144.25,144.21,6.9342]
[1728399231785,0.7654,144.27,144.2,3.85386785]
[1728399231968,0.7654,144.28,144.21,1.38661752]
[1728399232157,0.7654,144.28,144.22,6.9336]
[1728399232158,6.9319,144.26,144.22,6.9336]
[1728399233094,30.708284,144.27,144.23,8.31963427]
[1728399233273,0.7654,144.26,144.23,8.31963427]
[1728399233469,30.708284,144.27,144.23,8.3196299]
[1728399233680,0.7654,144.26,144.22,17.334]
[1728399233987,23.776884,144.28,144.22,17.334]
[1728399234161,6.9312,144.28,144.22,17.334]
[1728399234367,6.9312,144.28,144.24,6.9327]
[1728399234603,23.563,144.3,144.19,21.97923656]
[1728399234759,23.563,144.3,144.24,17.3316]
[1728399234959,23.563,144.3,144.26,24.2608]
[1728399234960,6.3749,144.3,144.26,24.2608]
[1728399235159,6.3749,144.3,144.25,1.38635468]
[1728399235160,6.9292,144.32,144.28,6.9309]
[1728399235392,7.695,144.31,144.27,6.9313]
[1728399237597,1.620461,144.33,144.28,1.38605677]
[1728399237789,1.620461,144.33,144.3,6.9298]
[1728399237964,1.620461,144.33,144.28,18.71255677]
[1728399238168,8.549061,144.33,144.29,6.9303]
[1728399238368,7.783661,144.33,144.3,1.38588378]
[1728399238791,0.855061,144.33,144.3,1.38588378]
[1728399238997,0.855061,144.33,144.29,8.31614954]
[1728399239571,0.855061,144.33,144.29,6.9303]
[1728399240367,6.9301,144.3,144.26,23.1147]
[1728399240565,6.9298,144.31,144.27,6.9311]
[1728399241002,6.9292,144.32,144.28,8.31690338]
[1728399241176,6.9292,144.32,144.28,6.9309]
[1728399241372,6.9292,144.32,144.28,8.31689877]
[1728399241601,1.620461,144.33,144.27,17.3284]
[1728399241901,6.9298,144.31,144.28,1.38599784]
[1728399242277,6.9298,144.31,144.23,6.18367735]
[1728399242278,6.932,144.26,144.23,6.18367735]
[1728399242478,6.932,144.26,144.23,3.86599667]
[1728399242684,23.776884,144.3,144.24,1.38648711]
[1728399242878,0.89089,144.31,144.24,6.9324]
[1728399243094,6.9306,144.29,144.24,6.9324]
[1728399243487,0.7654,144.28,144.23,3.86635641]
[1728399243697,7.6962,144.29,144.24,6.9327]
[1728399243979,6.9324,144.26,144.22,17.3342]
[1728399244176,6.9324,144.25,144.21,6.9342]
[1728399244392,7.6974,144.26,144.22,1.38657685]
[1728399244619,7.6974,144.26,144.21,6.9342]
[1728399244788,0.7654,144.26,144.19,39.90037735]
[1728399244997,6.9329,144.24,144.19,40.6515]
[1728399245181,6.9329,144.24,144.2,6.9347]
[1728399245504,6.9325,144.25,144.21,1.38664265]
[1728399245698,6.933,144.24,144.2,6.9347]
[1728399245905,6.933,144.24,144.2,10.80266739]
[1728399246209,0.7654,144.26,144.21,18.72163489]
[1728399246210,6.9323,144.26,144.21,18.72163489]
[1728399246411,0.7654,144.25,144.2,10.80256739]
[1728399246704,0.7654,144.25,144.2,3.86796739]
[1728399246895,0.7654,144.25,144.17,6.18831883]
[1728399246896,6.9348,144.2,144.17,6.18831883]
[1728399247080,0.12549,144.24,144.15,23.53192018]
[1728399247081,7.7007,144.19,144.15,23.53192018]
[1728399247287,0.7654,144.19,144.16,3.86833168]
[1728399247506,13.3307,144.21,144.17,3.86833168]
[1728399247683,13.3307,144.21,144.17,10.80453168]
[1728399247879,6.3964,144.21,144.18,8.32260241]
[1728399248103,6.9334,144.23,144.18,8.32260241]
[1728399248312,7.6988,144.23,144.19,6.9352]
[1728399248602,7.6988,144.23,144.18,8.32260241]
[1728399248982,7.6988,144.23,144.18,1.38700241]
[1728399249180,6.3877,144.21,144.15,9.03787137]
[1728399249413,0.25098,144.15,144.1,3.86645218]
[1728399249582,24.0321786,144.14,144.04,11.35723475]
[1728399249782,6.9395,144.11,144.05,8.32955844]
[1728399250012,1.73507242,144.1,144.05,6.9415]
[1728399250214,1.73507242,144.1,144.03,17.3574]
[1728399250509,6.9387,144.12,144.06,6.9414]
[1728399250805,6.9397,144.1,144.04,6.942]
[1728399251622,17.09419,144.14,144.06,6.9411]
[1728399251623,8.67364837,144.13,144.06,6.9411]
[1728399251791,6.9386,144.12,144.07,6.9409]
[1728399251993,1.73482259,144.11,144.07,6.9409]
[1728399252191,1.73482259,144.11,144.05,17.3539]
[1728399252192,1.73482259,144.11,144.06,6.9415]
[1728399252401,1.73482259,144.11,144.05,24.2958]
[1728399252705,6.9391,144.11,144.06,6.9415]
[1728399252902,1.73507502,144.1,144.06,6.9415]
[1728399253105,1.73507502,144.1,144.05,24.2959]
[1728399254686,6.9391,144.11,144.05,24.2959]
[1728399254891,1.73505882,144.1,144.06,6.9414]
[1728399255099,8.67465882,144.1,144.05,24.2958]
[1728399256417,6.9406,144.08,144.04,6.9424]
[1728399256612,6.9402,144.09,144.04,6.9424]
[1728399256814,1.86077047,144.12,144.05,1.38816317]
[1728399256991,6.9391,144.11,144.06,6.9411]
[1728399257190,6.9391,144.11,144.07,1.38804501]
[1728399257488,6.9391,144.11,144.07,8.32894501]
[1728399257912,6.9391,144.11,144.06,6.9414]
[1728399258603,1.73498221,144.1,144.06,6.9414]
[1728399258800,6.9387,144.12,144.07,8.32861741]
[1728399259000,1.73483956,144.11,144.07,6.9406]
[1728399259201,6.9386,144.12,144.07,6.9406]
[1728399259403,1.73484547,144.13,144.06,17.3531]
[1728399259711,1.73484547,144.13,144.08,6.9403]
[1728399259712,6.9387,144.12,144.08,6.9403]
[1728399260095,1.73484547,144.13,144.09,8.32791377]
[1728399260096,8.67304547,144.13,144.09,8.32791377]
[1728399260297,8.12243578,144.16,144.09,1.38781377]
[1728399260486,1.73439684,144.18,144.15,6.937]
[1728399260687,8.66971436,144.19,144.14,6.9373]
[1728399260997,6.9361,144.18,144.14,17.3436]
[1728399261210,1.73414966,144.17,144.11,17.3472]
[1728399261517,6.9378,144.14,144.09,6.9397]
[1728399261687,6.9378,144.14,144.1,6.9394]
[1728399261889,6.9373,144.15,144.1,6.9394]
[1728399262097,8.67178132,144.15,144.1,6.9394]
[1728399262298,6.9377,144.14,144.1,6.9394]
[1728399262599,1.73448132,144.15,144.1,6.9394]
[1728399262798,8.67178132,144.15,144.1,6.9394]
[1728399264825,8.67178132,144.15,144.11,1.38763449]
[1728399265218,8.67178132,144.15,144.1,6.9394]
[1728399265709,6.9382,144.13,144.08,24.2909]
[1728399266103,8.67333906,144.12,144.08,17.3507]
[1728399266310,6.9401,144.09,144.05,24.2966]
[1728399267153,6.9397,144.1,144.05,24.2966]
[1728399267309,8.6752546,144.09,144.05,24.2966]
[1728399267496,1.7351546,144.09,144.06,6.9414]
[1728399267806,6.9401,144.09,144.05,24.2965]
[1728399268207,8.67589573,144.08,144.02,17.358]
[1728399268515,6.9416,144.06,144.02,17.358]
[1728399268900,6.9426,144.04,144.0,6.9442]
[1728399269101,6.9423,144.05,144.0,6.9442]
[1728399269322,8.67816531,144.04,144.0,6.9442]
[1728399269691,1.73566531,144.04,143.99,17.3616]
[1728399269895,6.943,144.03,143.99,24.3064]
[1728399270498,1.86132416,144.07,143.99,24.3064]
[1728399270715,6.9426,144.04,143.99,24.3064]
[1728399270920,25.51275352,144.03,143.99,17.3616]
[1728399271127,32.45605352,144.03,143.99,17.3616]
[1728399271309,8.67916952,144.03,143.99,24.3063]
[1728399271822,8.67916952,144.03,143.97,6.9457]
[1728399271823,6.944,144.01,143.97,6.9457]
[1728399272028,8.68012044,144.01,143.97,6.9457]
[1728399272239,6.9445,144.0,143.96,24.3117]
[1728399272525,8.68141026,143.99,143.95,6.9467]
[1728399273223,1.73641026,143.99,143.95,6.9467]
[1728399273526,23.776884,143.99,143.95,6.9467]
[1728399274224,8.68108455,144.0,143.96,6.9462]
[1728399274429,6.9447,144.0,143.96,6.9462]
[1728399274741,1.73637095,143.99,143.96,6.9462]
[1728399275331,23.776884,143.98,143.95,17.3665]
[1728399275516,30.722284,143.98,143.95,17.3665]
[1728399275825,1.73656729,143.97,143.93,6.9477]
[1728399276001,1.73656729,143.97,143.92,17.3701]
[1728399276002,8.68276729,143.97,143.92,24.3182]
[1728399276209,8.68246729,143.97,143.93,6.9477]
[1728399276603,1.73656729,143.97,143.93,6.9477]
[1728399276807,30.722284,143.98,143.93,8.33708649]
[1728399277019,1.73663799,143.97,143.93,6.9477]
[1728399277421,1.73663799,143.97,143.93,8.33703536]
[1728399277629,30.722284,143.98,143.93,8.33703536]
[1728399277828,30.722284,143.98,143.94,6.9473]
[1728399278004,1.73663636,143.97,143.94,6.9473]
[1728399278200,8.68263636,143.97,143.93,6.9477]
[1728399279136,8.68263636,143.97,143.92,17.3701]
[1728399279429,8.68263636,143.97,143.92,24.3183]
[1728399279627,8.68263636,143.97,143.92,17.3701]
[1728399279831,1.73663636,143.97,143.92,17.3701]
[1728399280124,1.73663636,143.97,143.87,58.3453871]
[1728399280125,6.9469,143.95,143.9,6.9492]
[1728399280326,1.73698684,143.94,143.9,6.9492]
[1728399280517,1.73693653,143.95,143.91,8.33814923]
[1728399280714,1.73693653,143.95,143.91,6.9486]
[1728399281123,8.25671535,143.96,143.94,6.9473]
[1728399281430,8.25671535,143.96,143.93,24.3169]
[1728399281606,8.25671535,143.96,143.93,17.3692]
[1728399281933,1.73683894,143.97,143.93,17.3692]
[1728399282234,1.73683894,143.97,143.94,6.9472]
[1728399282403,25.6390859,143.98,143.94,1.38936952]
[1728399282807,25.6390859,143.98,143.94,6.9472]
[1728399283237,25.6390859,143.98,143.95,6.9468]
[1728399283608,1.73664017,143.97,143.93,17.3692]
[1728399285123,23.902374,143.96,143.93,17.3692]
[1728399285331,1.73693818,143.95,143.93,17.3692]
[1728399285518,1.73693815,143.99,143.93,18.75875052]
[1728399285830,6.9454,143.98,143.94,6.9472]
[1728399286037,1.73665411,143.97,143.94,6.9472]
[1728399286232,1.73665411,143.97,143.92,17.3697]
[1728399286539,6.9459,143.97,143.93,6.9476]
[1728399286710,8.68323522,143.96,143.92,24.3179]
[1728399286911,6.9469,143.95,143.91,6.9486]
[1728399287212,1.73695572,143.94,143.91,6.9486]
[1728399287407,1.73695572,143.94,143.87,58.3453871]
[1728399287610,23.776884,143.95,143.92,6.9482]
[1728399287820,25.5137985,143.95,143.92,6.9482]
[1728399289631,23.902374,143.97,143.94,6.947]
[1728399289835,1.73670586,143.96,143.93,24.3167]
[1728399290218,1.73670586,143.96,143.93,17.3691]
[1728399290418,23.902374,143.97,143.94,6.9473]
[1728399290625,25.6390777,143.97,143.94,6.9473]
[1728399291136,1.73672588,143.96,143.93,24.3165]
[1728399292928,6.9469,143.95,143.91,6.9486]
[1728399295240,0.12549,143.95,143.9,17.3727]
[1728399295432,1.73691913,143.94,143.92,6.948]
[1728399295736,25.51393622,143.96,143.93,6.9474]
[1728399296336,30.848074,143.98,143.94,6.9473]
[1728399296532,1.73673553,143.97,143.94,6.9473]
[1728399298347,23.776884,143.98,143.95,6.9468]
[1728399299039,6.9454,143.98,143.94,24.315]
[1728399299339,8.68247566,143.97,143.94,24.315]
[1728399300030,8.68247566,143.97,143.94,17.368]
[1728399301037,30.723284,143.96,143.92,6.948]
[1728399301233,1.73681351,143.95,143.92,6.948]
[1728399301436,8.68381351,143.95,143.91,24.3197]
[1728399301627,1.73681351,143.95,143.91,17.3711]
[1728399301819,1.73681351,143.95,143.92,6.9482]
[1728399302245,8.68361351,143.95,143.91,24.3197]
[1728399302422,6.9484,143.92,143.88,24.3243]
[1728399302623,8.68592628,143.91,143.88,17.3745]
[1728399303818,1.86284747,143.93,143.89,6.9497]
[1728399304017,1.86284747,143.93,143.9,6.9491]
[1728399305045,1.73735747,143.93,143.9,6.9491]
[1728399305341,54.838784,143.94,143.9,6.9491]
[1728399305541,23.776884,143.92,143.88,17.3745]
[1728399305739,8.686468,143.91,143.87,6.9506]
[1728399305920,30.726284,143.9,143.86,6.9511]
[1728399306115,1.73752949,143.89,143.86,6.9511]
[1728399306330,6.9489,143.91,143.87,6.9506]
[1728399306760,1.73741798,143.9,143.87,6.9506]
[1728399307446,8.68671798,143.9,143.86,6.9511]
[1728399307819,1.73741798,143.9,143.89,6.9497]
[1728399308029,23.776884,143.91,143.88,24.3256]
[1728399308344,8.81208114,143.9,143.86,6.951]
[1728399308544,23.776884,143.89,143.85,17.3787]
[1728399308743,8.68809718,143.88,143.85,17.3787]
[1728399308950,30.726784,143.89,143.85,25.72052894]
[1728399309148,8.68800321,143.88,143.85,17.3787]
[1728399309324,1.73770321,143.88,143.85,17.3787]
[1728399309518,30.726284,143.9,143.86,6.9509]
[1728399309739,1.73770431,143.89,143.86,6.9509]
[1728399310153,8.68740431,143.89,143.85,24.3302]
[1728399310644,1.73770431,143.89,143.85,24.3302]
[1728399310949,1.73770431,143.89,143.86,6.951]
[1728399311244,1.73762191,143.93,143.87,1.39001251]
[1728399311451,6.9465,143.96,143.92,6.9479]
[1728399311621,1.73691553,143.95,143.93,6.9476]
[1728399311817,1.73691553,143.96,143.93,6.9476]
[1728399312023,1.73678559,143.97,143.94,6.9469]
[1728399312553,8.48446136,143.98,143.95,6.9467]
[1728399312845,8.68133022,144.0,143.95,6.9467]
[1728399313035,1.73653022,144.0,143.95,6.9467]
[1728399313418,8.68103022,144.0,143.96,6.9463]
[1728399313624,6.9445,144.0,143.96,6.9463]
[1728399314324,1.7363867,144.01,143.96,6.9463]
[1728399314549,8.6806867,144.01,143.96,6.9463]
[1728399314925,7.06999,144.0,143.96,6.9463]
[1728399315145,30.846874,144.0,143.95,24.3132]
[1728399315346,0.12549,144.0,143.95,24.3132]
[1728399315524,6.945,143.99,143.95,24.3132]
[1728399316226,8.8063933,144.0,143.95,24.3132]
[1728399318232,6.9458,143.98,143.94,6.9471]
[1728399318436,8.68247063,143.97,143.93,6.9476]
[1728399318759,6.9467,143.96,143.92,23.39283408]
[1728399319051,6.9467,143.96,143.92,17.3699]
[1728399319432,8.68359207,143.95,143.92,17.3699]
[1728399319747,6.9464,143.96,143.92,24.3181]
[1728399320149,1.73686735,143.95,143.92,24.3181]
[1728399320761,6.9464,143.96,143.92,24.3181]
[1728399321124,1.73686891,143.95,143.92,24.3181]
[1728399321640,6.9464,143.96,143.92,24.3181]
[1728399323035,0.12549,143.97,143.92,17.3699]
[1728399323241,7.07149,143.97,143.93,6.9477]
[1728399323645,1.73673707,143.96,143.93,6.9477]
[1728399324147,21.86222739,143.99,143.93,1.38938991]
[1728399324350,1.73673739,143.99,143.96,6.9461]
[1728399324544,1.73642028,144.0,143.96,17.3657]
[1728399324737,8.68092028,144.0,143.96,24.3119]
[1728399325148,1.73642028,144.0,143.97,6.9458]
[1728399325362,6.9442,144.01,143.97,6.9458]
[1728399325363,8.68050914,144.01,143.97,6.9458]
[1728399325740,6.9444,144.0,143.97,6.9458]
[1728399326055,1.73628156,143.99,143.96,24.312]
[1728399330256,23.776884,143.98,143.93,17.3686]
[1728399330447,1.73656787,143.97,143.94,6.9472]
[1728399330858,23.776884,143.99,143.95,17.3664]
[1728399331153,1.73655104,143.98,143.95,17.3664]
[1728399331361,1.73655104,143.98,143.96,6.946]
[1728399331656,1.73655104,143.98,143.95,17.3664]
[1728399332039,6.9444,144.0,143.97,6.9458]
[1728399332233,1.73633052,143.99,143.96,6.9463]
[1728399332544,6.9454,143.98,143.94,6.9472]
[1728399332754,8.68254818,143.97,143.93,6.9476]
[1728399333054,6.9464,143.96,143.92,24.318]
[1728399333259,1.73685164,143.95,143.92,24.318]
[1728399334035,6.9464,143.96,143.92,24.318]
[1728399334686,23.776884,143.96,143.93,6.9477]
[1728399334872,25.51369951,143.96,143.93,6.9477]
[1728399336339,23.776884,143.96,143.94,6.947]
[1728399336662,23.776884,143.97,143.94,6.947]
[1728399337177,1.73665548,143.96,143.93,6.9477]
[1728399340051,30.722884,143.97,143.93,6.9477]
[1728399340666,30.722884,143.97,143.93,8.33706589]
[1728399340846,30.722884,143.97,143.93,6.9477]
[1728399341267,1.7367078,143.96,143.93,6.9477]
[1728399342548,23.776884,143.97,143.93,1.38936956]
[1728399342752,25.5135323,143.97,143.94,17.3681]
[1728399343062,25.5135323,143.97,143.94,24.3153]
[1728399343451,7.07039,143.99,143.95,6.9467]
[1728399343653,1.73655255,143.98,143.95,6.9467]
[1728399344051,8.68195255,143.98,143.95,6.9467]
[1728399344569,8.68195255,143.98,143.94,24.3153]
[1728399345153,8.68157611,143.99,143.95,6.9464]
[1728399345554,1.73657611,143.99,143.96,6.9463]
[1728399345771,31.43197541,144.04,143.95,1.38907733]
[1728399345772,17.3572,144.04,143.95,1.38907733]
[1728399345975,6.9442,144.01,143.97,6.9454]
[1728399346151,6.9442,144.01,143.97,8.33443939]
[1728399346360,8.21427775,144.02,143.97,1.38903939]
[1728399346674,6.9431,144.03,143.99,6.9448]
[1728399346863,8.67956005,144.02,143.99,6.9448]
[1728399347066,1.73606005,144.02,143.99,6.9448]
[1728399348282,8.67956005,144.02,143.99,6.9448]
[1728399348468,8.67956005,144.02,143.98,24.3086]
[1728399349964,1.73606003,144.03,144.0,6.9443]
[1728399350289,1.73598931,144.04,144.01,6.9439]
[1728399350577,8.67848931,144.04,144.0,24.3049]
[1728399350965,1.73598931,144.04,144.0,17.3609]
[1728399351370,17.3531,144.05,144.01,1.38866188]
[1728399351371,1.73582735,144.05,144.01,1.38866188]
[1728399351590,8.67738786,144.06,144.02,8.33203029]
[1728399351877,6.9416,144.06,144.02,8.33203029]
[1728399352056,1.73559825,144.05,144.01,6.9438]
[1728399352259,17.3516,144.08,143.99,6.9447]
[1728399352260,6.943,144.03,143.99,6.9447]
[1728399352861,8.67942157,144.02,143.98,6.9452]
[1728399353384,6.944,144.01,143.97,24.3094]
[1728399353787,6.9436,144.02,143.98,6.9453]
[1728399354084,24.027864,144.02,143.94,39.82370958]
[1728399354278,6.9457,143.98,143.94,24.3147]
[1728399354481,23.776884,143.98,143.95,6.9467]
[1728399354684,23.776884,144.0,143.97,6.9458]
[1728399354901,25.513176,144.0,143.97,6.9458]
[1728399355064,25.513176,144.0,143.96,17.3657]
[1728399355269,32.457676,144.0,143.96,24.3119]
[1728399356667,25.513176,144.0,143.92,20.0]
[1728399356990,0.25098,143.99,143.93,17.3689]
[1728399357503,6.946,143.97,143.93,24.3167]
[1728399357872,6.946,143.97,143.94,1.38930244]
[1728399358070,0.12549,143.99,143.96,6.9461]
[1728399358982,30.721584,144.0,143.96,8.33525037]
[1728399359300,6.9449,143.99,143.95,24.3132]
[1728399359794,6.9459,143.97,143.93,6.9476]
[1728399360095,8.68199482,143.98,143.94,6.9473]
[1728399360397,6.9455,143.98,143.94,6.9473]
[1728399360696,8.68081426,144.01,143.97,6.9458]
[1728399360869,8.68081426,144.01,143.96,17.3653]
[1728399360870,1.73651426,144.01,143.96,17.3653]
[1728399361065,1.73651426,144.01,143.98,6.9453]
[1728399361501,8.68041426,144.01,143.97,6.9455]
[1728399361690,6.9439,144.01,143.97,6.9455]
[1728399362076,23.776884,144.01,143.98,6.9453]
[1728399362485,8.67981561,144.02,143.98,6.9453]
[1728399362791,6.944,144.01,143.97,6.9454]
[1728399363091,6.944,144.01,143.96,17.3653]
[1728399363092,8.68001561,144.02,143.98,6.9453]
[1728399363997,1.73608843,144.04,144.01,6.9439]
[1728399364171,1.73581107,144.05,144.02,6.9434]
[1728399364378,1.73581107,144.06,144.03,6.9429]
[1728399364689,1.73566266,144.07,144.03,8.33143013]
[1728399365377,15.1044801,144.08,144.04,6.9425]
[1728399366274,8.1637801,144.08,144.04,6.9425]
[1728399366500,6.9414,144.07,144.02,17.3584]
[1728399366675,8.67705132,144.06,144.02,24.3017]
[1728399366882,6.9415,144.06,144.02,24.3017]
[1728399367072,6.9412,144.07,144.02,24.3017]
[1728399367396,23.776884,144.06,144.02,24.3017]
[1728399368493,25.51240535,144.06,144.02,17.3584]
[1728399368704,6.9425,144.04,144.0,6.9443]
[1728399369194,6.9425,144.04,143.99,17.3618]
[1728399369195,1.73575369,144.03,143.99,17.3618]
[1728399369406,6.9439,144.01,143.97,6.9457]
[1728399369698,8.67998801,144.01,143.97,6.9457]
[1728399370695,25.51306415,144.02,143.94,6.04055742]
[1728399370887,25.51289857,144.03,144.0,6.9441]
[1728399371599,25.51289857,144.03,143.94,6.04055742]
[1728399371785,25.51289857,144.03,144.0,24.3047]
[1728399372093,30.843874,144.06,144.02,6.943]
[1728399372297,8.67766829,144.05,144.01,6.9437]
[1728399373882,6.9431,144.03,143.99,6.9448]
[1728399374082,8.67951935,144.02,143.98,6.9449]
[1728399374294,23.776884,144.02,143.99,6.9448]
[1728399374500,23.776884,144.02,143.97,17.3643]
[1728399374794,30.720384,144.02,143.98,6.9452]
[1728399374999,8.68006308,144.01,143.97,24.31]
[1728399376785,30.720484,144.02,143.98,6.9451]
[1728399377189,1.73606439,144.01,143.98,6.9451]
[1728399378081,23.776884,144.0,143.94,6.0382779]
[1728399378287,8.68131323,143.99,143.95,6.9467]
[1728399378488,8.68131323,143.99,143.94,17.3672]
[1728399378676,30.721284,144.0,143.96,6.9463]
[1728399378879,1.7362677,144.02,143.97,1.38901416]
[1728399379076,6.9423,144.05,144.01,6.9439]
[1728399379295,1.73598671,144.07,144.0,17.3607]
[1728399379502,6.942,144.05,144.01,8.33216061]
[1728399379804,6.942,144.05,144.01,6.9436]
[1728399379979,6.942,144.05,144.0,17.3607]
[1728399380178,1.73598671,144.07,143.97,20.27681406]
[1728399380375,8.67738671,144.07,144.03,6.9428]
[1728399381197,1.73598671,144.07,144.05,6.9419]
[1728399381401,1.73598671,144.07,144.04,24.2982]
[1728399381909,8.67698671,144.07,144.04,24.2982]
[1728399382288,23.776884,144.06,144.04,17.3559]
[1728399382600,23.776884,144.07,144.04,17.3559]
[1728399382799,23.776884,144.07,144.05,6.942]
[1728399382996,23.776884,144.07,144.04,24.2982]
[1728399384191,6.9406,144.08,144.05,1.38831807]
[1728399384394,6.9406,144.08,144.04,24.2982]
[1728399384580,0.12549,144.09,143.99,36.32101406]
[1728399384903,6.9418,144.06,144.02,6.9431]
[1728399385295,6.9413,144.07,144.03,6.9428]
[1728399385495,23.902374,144.08,144.01,17.3594]
[1728399385803,8.67653788,144.07,144.03,6.9426]
[1728399386805,25.63783089,144.08,144.02,1.38838852]
[1728399386984,23.776884,144.08,144.05,6.9419]
[1728399387313,30.717484,144.08,144.05,17.3542]
[1728399387486,1.73530838,144.07,144.02,17.3581]
[1728399388181,6.9424,144.05,144.01,6.9439]
[1728399388384,8.67823536,144.04,144.0,6.9443]
[1728399388682,1.73573536,144.04,144.02,6.9434]
[1728399388885,1.73575475,144.05,144.01,17.3596]
[1728399389089,6.9426,144.04,144.01,17.3596]
[1728399389307,1.73582354,144.03,144.01,17.3596]
[1728399389904,1.73582354,144.03,143.95,23.2772]
[1728399389905,30.720384,144.02,143.98,17.3626]
[1728399390085,8.6800734,144.01,143.98,17.3626]
[1728399390291,8.6800734,144.01,143.97,6.9457]
[1728399391393,23.776884,144.0,143.95,34.0604]
[1728399391589,1.73639637,143.99,143.95,17.3661]
[1728399391783,30.721684,144.0,143.96,8.33539146]
[1728399391989,1.73636566,143.99,143.96,6.9463]
[1728399392317,8.80566048,144.02,143.98,6.9454]
[1728399392610,7.21468005,144.05,144.0,6.9444]
[1728399392611,23.902374,144.03,144.0,6.9444]
[1728399392802,1.73606267,144.02,143.99,17.362]
[1728399393001,8.67956267,144.02,143.98,6.9453]
[1728399393311,8.67956267,144.02,143.96,17.365]
[1728399393312,6.9446,144.0,143.96,24.3113]
[1728399394114,1.73628327,144.0,143.97,6.9458]
[1728399394294,23.776884,143.99,143.96,17.365]
[1728399394612,30.722084,143.99,143.95,6.9468]
[1728399394993,8.68186475,143.98,143.94,10.72489929]
[1728399395193,23.776884,143.99,143.95,6.9467]
[1728399395505,1.73647792,143.98,143.95,6.9467]
[1728399395703,30.722184,143.99,143.95,6.9467]
[1728399395912,23.776884,143.97,143.95,6.9467]
[1728399396111,30.722184,143.99,143.95,6.9467]
[1728399396309,23.776884,144.0,143.94,3.77746748]
[1728399396501,23.776884,143.98,143.96,6.9463]
[1728399396819,30.721284,144.0,143.96,6.9459]
[1728399397499,23.776884,144.0,143.97,6.9455]
[1728399400803,6.9431,144.03,143.99,6.9449]
[1728399401000,1.73606366,144.02,143.99,6.9449]
[1728399401195,6.9435,144.02,143.99,6.9449]
[1728399401894,6.9435,144.02,143.97,17.3645]
[1728399402098,6.9435,144.02,143.98,8.33375356]
[1728399402318,23.776884,144.01,143.98,8.33375356]
[1728399402618,23.776884,144.01,143.99,6.9447]
[1728399402921,23.776884,144.02,144.01,6.9439]
[1728399403816,23.776884,144.04,144.01,6.9439]
[1728399404022,23.776884,144.04,144.02,6.9434]
[1728399404224,1.73570882,144.08,144.02,1.38856706]
[1728399404399,6.9412,144.07,144.03,6.9428]
[1728399404716,1.73567596,144.06,144.03,6.9428]
[1728399405228,1.73567596,144.06,143.98,17.3628]
[1728399405394,23.776884,144.03,144.0,6.944]
[1728399406221,1.73591594,144.02,143.98,17.3628]
[1728399406524,30.719884,144.03,143.99,6.9447]
[1728399407396,30.719884,144.03,143.99,10.72460376]
[1728399407597,30.719884,144.03,143.99,6.9447]
[1728399409309,30.719884,144.03,144.0,6.9444]
[1728399409622,23.776884,144.03,143.99,1.38877379]
[1728399409803,23.776884,144.04,144.01,6.9439]
[1728399410009,23.776884,144.05,144.02,6.9434]
[1728399410200,23.776884,144.05,144.0,17.3608]
[1728399410403,30.718984,144.05,144.01,6.9436]
[1728399411227,1.73570318,144.04,144.0,17.3608]
[1728399411527,6.943,144.03,144.0,17.3608]
[1728399411910,23.776884,144.03,144.0,24.3051]
[1728399412725,23.776884,144.04,144.01,8.33237814]
[1728399413028,23.776884,144.04,144.01,6.9437]
[1728399415111,23.776884,144.04,144.03,6.9429]
[1728399415526,23.776884,144.04,144.02,24.3017]
[1728399415737,23.776884,144.05,144.02,24.3017]
[1728399418841,23.776884,144.05,144.03,6.9429]
[1728399419032,23.776884,144.05,144.02,24.3014]
[1728399420548,23.776884,144.05,144.02,17.3583]